bitfinex-derivatives/quotes_BTCF0:USTF0_20250509
["timestamp","ask_amount","ask_price","bid_price","bid_amount"]
[1746749827096,0.8652314,103060.0,103050.0,0.40146059]
[1746749827297,0.8652314,103060.0,103050.0,0.40246059]
[1746749828192,0.8652314,103060.0,103050.0,0.20837039]
[1746749828599,0.97357458,103060.0,103050.0,0.20837039]
[1746749830796,0.97357458,103060.0,103050.0,0.16297039]
[1746749832186,1.17895376,103060.0,103050.0,0.16297039]
[1746749832387,0.1941467,103020.0,103010.0,0.43793005]
[1746749832597,0.15,103020.0,103010.0,1.39561433]
[1746749832785,0.15,103020.0,103010.0,3.14561433]
[1746749833092,0.6378628,103040.0,103030.0,0.1941279]
[1746749833093,0.8319845,103040.0,103030.0,0.1941279]
[1746749833292,0.7019845,103040.0,103030.0,0.1941279]
[1746749833497,0.4543229,103050.0,103040.0,0.194109]
[1746749833498,0.5548979,103050.0,103040.0,0.194109]
[1746749833683,0.7698579,103050.0,103040.0,0.364109]
[1746749834195,0.8148579,103050.0,103040.0,0.524109]
[1746749834598,0.8158579,103050.0,103040.0,0.524109]
[1746749834794,0.7708579,103050.0,103040.0,0.524109]
[1746749835185,0.4100579,103050.0,103040.0,0.63245218]
[1746749835391,0.7708579,103050.0,103040.0,0.63245218]
[1746749836094,0.7708579,103050.0,103040.0,0.524109]
[1746749836490,0.7708579,103050.0,103040.0,0.754109]
[1746749836799,0.7718579,103050.0,103040.0,0.754109]
[1746749837384,0.6868979,103050.0,103040.0,0.754109]
[1746749837804,0.6868979,103050.0,103040.0,0.524109]
[1746749838298,0.6868979,103050.0,103040.0,0.354109]
[1746749838489,0.7313979,103050.0,103040.0,0.554109]
[1746749838690,0.7313979,103050.0,103040.0,0.354109]
[1746749838891,0.85974108,103050.0,103040.0,0.16]
[1746749839090,0.90554108,103050.0,103040.0,0.16]
[1746749839293,0.95404108,103050.0,103040.0,0.16]
[1746749839797,0.95646108,103050.0,103040.0,0.16]
[1746749840099,0.7538179,103050.0,103040.0,0.354109]
[1746749841999,0.7942779,103050.0,103040.0,0.354109]
[1746749842987,0.7942779,103050.0,103040.0,0.401809]
[1746749843192,0.8404779,103050.0,103040.0,0.581809]
[1746749843597,0.8404779,103050.0,103040.0,0.401809]
[1746749843802,0.7555179,103050.0,103040.0,0.591809]
[1746749843998,0.13442,103050.0,103040.0,0.71015218]
[1746749844196,0.14442,103050.0,103040.0,1.48685218]
[1746749844497,0.14442,103050.0,103040.0,1.72685218]
[1746749844695,0.3385102,103050.0,103040.0,1.618509]
[1746749844896,0.3385102,103050.0,103040.0,2.98685218]
[1746749845091,0.3385102,103050.0,103040.0,3.22685218]
[1746749846101,0.3365102,103050.0,103040.0,3.22785218]
[1746749846301,0.3365102,103050.0,103040.0,3.22885218]
[1746749846805,0.3365102,103050.0,103040.0,3.120509]
[1746749847102,0.3365102,103050.0,103040.0,2.98885218]
[1746749847293,0.3365102,103050.0,103040.0,3.23885218]
[1746749849605,0.14242,103050.0,103040.0,3.23885218]
[1746749850392,0.14242,103050.0,103040.0,3.130509]
[1746749850596,0.14242,103050.0,103040.0,3.23885218]
[1746749851406,0.14242,103050.0,103040.0,3.28605218]
[1746749852108,0.14242,103050.0,103040.0,3.33475218]
[1746749855904,0.71055338,103050.0,103040.0,0.7215]
[1746749856209,1.02635338,103050.0,103040.0,0.772009]
[1746749856713,1.02635338,103050.0,103040.0,0.162]
[1746749856902,1.02635338,103050.0,103040.0,0.356109]
[1746749857102,1.02735338,103050.0,103040.0,0.355109]
[1746749857301,1.02835338,103050.0,103040.0,0.354109]
[1746749858711,0.9200102,103050.0,103040.0,0.354109]
[1746749859009,0.9200102,103050.0,103040.0,0.446509]
[1746749859215,0.9200102,103050.0,103040.0,0.401009]
[1746749859411,0.9200102,103050.0,103040.0,0.354109]
[1746749860512,1.02835338,103050.0,103040.0,0.354109]
[1746749862916,0.94355338,103050.0,103040.0,0.354109]
[1746749863212,1.02835338,103050.0,103040.0,0.354109]
[1746749863514,1.02835338,103050.0,103040.0,0.16]
[1746749865413,1.02835338,103050.0,103040.0,0.354109]
[1746749865817,1.02835338,103050.0,103040.0,0.16]
[1746749872913,0.72592,103050.0,103040.0,0.63245218]
[1746749873114,0.27412,103050.0,103040.0,1.14145218]
[1746749873315,0.14442,103050.0,103040.0,1.91815218]
[1746749873510,0.14442,103050.0,103040.0,2.27815218]
[1746749873710,0.14442,103050.0,103040.0,3.77815218]
[1746749873916,0.14442,103050.0,103040.0,2.27815218]
[1746749874219,0.3385102,103050.0,103040.0,2.169809]
[1746749874415,0.3861102,103050.0,103040.0,3.77815218]
[1746749875011,0.3851102,103050.0,103040.0,3.41835218]
[1746749875321,0.3841102,103050.0,103040.0,3.41835218]
[1746749875521,0.3841102,103050.0,103040.0,3.41935218]
[1746749875718,0.14242,103050.0,103040.0,3.41935218]
[1746749876923,0.3365102,103050.0,103040.0,3.41935218]
[1746749877118,0.14242,103050.0,103040.0,3.41935218]
[1746749877324,0.0013,103060.0,103050.0,0.1940902]
[1746749877616,0.1413,103060.0,103050.0,1.94641656]
[1746749877809,0.1413,103060.0,103050.0,2.04345256]
[1746749878011,0.1413,103060.0,103050.0,3.54345256]
[1746749878320,0.1413,103060.0,103050.0,3.70345256]
[1746749878518,0.1433,103060.0,103050.0,3.70345256]
[1746749878712,0.33737844,103080.0,103070.0,0.1940525]
[1746749878913,0.2140337,103080.0,103070.0,1.41462658]
[1746749879217,0.2140337,103080.0,103070.0,1.66782658]
[1746749879621,0.2140337,103080.0,103070.0,1.67526602]
[1746749879824,0.02,103080.0,103070.0,1.67526602]
[1746749880120,0.02,103080.0,103070.0,1.67626602]
[1746749880915,0.02,103080.0,103070.0,1.89626602]
[1746749881424,0.02,103080.0,103070.0,1.89726602]
[1746749881626,0.02,103080.0,103070.0,1.98186602]
[1746749881818,0.02,103080.0,103070.0,2.07888202]
[1746749882320,0.30237688,103080.0,103070.0,0.192]
[1746749882521,0.3721337,103080.0,103070.0,0.5260525]
[1746749882718,0.13,103080.0,103070.0,1.09221168]
[1746749882915,0.13,103080.0,103070.0,1.39761168]
[1746749883127,0.13,103080.0,103070.0,1.38519568]
[1746749883527,0.13,103080.0,103070.0,1.48221168]
[1746749884122,0.13,103080.0,103070.0,1.48964894]
[1746749884322,0.13,103080.0,103070.0,2.98964894]
[1746749887030,0.13,103080.0,103070.0,2.89263294]
[1746749887220,0.3240337,103080.0,103070.0,2.69968976]
[1746749887416,0.47757688,103080.0,103070.0,0.81563726]
[1746749887616,0.4617337,103080.0,103070.0,0.67563726]
[1746749887816,0.4617337,103080.0,103070.0,1.34393294]
[1746749888020,0.4143337,103080.0,103070.0,1.17313294]
[1746749888231,0.7751337,103080.0,103070.0,1.17313294]
[1746749888530,0.7751337,103080.0,103070.0,1.06478976]
[1746749888721,0.7751337,103080.0,103070.0,1.07478976]
[1746749889331,0.7751337,103080.0,103070.0,0.93478976]
[1746749889626,0.7751337,103080.0,103070.0,1.05478976]
[1746749889824,0.8597337,103080.0,103070.0,0.93478976]
[1746749890020,0.8597337,103080.0,103070.0,1.07478976]
[1746749890225,0.8597337,103080.0,103070.0,0.91478976]
[1746749890425,0.8597337,103080.0,103070.0,0.62533726]
[1746749890830,1.32642006,103080.0,103070.0,0.1068096]
[1746749891034,1.21807688,103080.0,103070.0,0.1068096]
[1746749891233,1.21807688,103080.0,103070.0,0.002]
[1746749891732,0.1940525,103070.0,103060.0,0.09956964]
[1746749891940,0.93369568,103070.0,103060.0,0.12956964]
[1746749892231,0.93369568,103070.0,103060.0,0.03]
[1746749892429,0.1940902,103050.0,103040.0,0.67614852]
[1746749892635,0.6848902,103050.0,103040.0,0.949209]
[1746749892934,0.7792902,103050.0,103040.0,0.949209]
[1746749893326,0.7792902,103050.0,103040.0,1.109209]
[1746749894233,0.7792902,103050.0,103040.0,1.110209]
[1746749895233,0.7792902,103050.0,103040.0,0.818809]
[1746749895435,0.8281902,103050.0,103040.0,0.878809]
[1746749895628,0.8281902,103050.0,103040.0,0.888809]
[1746749896027,0.8291902,103050.0,103040.0,0.887809]
[1746749896227,0.8291902,103050.0,103040.0,0.89511219]
[1746749896537,0.8291902,103050.0,103040.0,1.00511219]
[1746749896836,0.8291902,103050.0,103040.0,0.58921219]
[1746749897036,0.93753338,103050.0,103040.0,0.34830319]
[1746749897229,0.93853338,103050.0,103040.0,0.03730319]
[1746749897431,0.93853338,103050.0,103040.0,0.23141219]
[1746749898123,0.84003139,103050.0,103040.0,0.39141219]
[1746749898336,0.92463139,103050.0,103040.0,0.48671219]
[1746749898532,0.92463139,103050.0,103040.0,0.32671219]
[1746749899630,0.92463139,103050.0,103040.0,0.29671219]
[1746749899835,0.92463139,103050.0,103040.0,0.32671219]
[1746749900037,0.92463139,103050.0,103040.0,0.37181219]
[1746749900228,0.92463139,103050.0,103040.0,0.50181219]
[1746749900425,0.84003139,103050.0,103040.0,0.70181219]
[1746749900732,0.5411,103050.0,103040.0,0.81015537]
[1746749901131,0.7351902,103050.0,103040.0,0.81015537]
[1746749901331,0.3743902,103050.0,103040.0,1.37095537]
[1746749901531,0.3733902,103050.0,103040.0,1.37095537]
[1746749901726,0.3733902,103050.0,103040.0,1.26361219]
[1746749901934,0.4217902,103050.0,103040.0,1.06361219]
[1746749902137,0.4207902,103050.0,103040.0,1.06461219]
[1746749902527,0.4207902,103050.0,103040.0,1.25461219]
[1746749902728,0.4207902,103050.0,103040.0,1.67051219]
[1746749903029,0.4207902,103050.0,103040.0,2.98051219]
[1746749904737,0.4207902,103050.0,103040.0,1.48051219]
[1746749906044,0.4207902,103050.0,103040.0,1.68051219]
[1746749906532,0.4207902,103050.0,103040.0,1.78885537]
[1746749907534,0.4207902,103050.0,103040.0,1.69534036]
[1746749907741,0.4207902,103050.0,103040.0,1.69550388]
[1746749911635,0.0483,103050.0,103040.0,1.76464706]
[1746749911843,0.7848629,103080.0,103050.0,0.0485184]
[1746749912035,0.2395525,103070.0,103060.0,0.94825918]
[1746749912234,0.3695525,103070.0,103060.0,2.80825918]
[1746749913341,0.3715525,103070.0,103060.0,2.80825918]
[1746749913532,0.3715525,103070.0,103060.0,2.699916]
[1746749914041,0.3715525,103070.0,103060.0,2.86468567]
[1746749914642,0.3725525,103070.0,103060.0,2.86468567]
[1746749915039,0.3705525,103070.0,103060.0,2.50388567]
[1746749915245,0.3715525,103070.0,103060.0,2.50388567]
[1746749915740,0.3715525,103070.0,103060.0,2.30536937]
[1746749915940,0.7323525,103070.0,103060.0,2.30536937]
[1746749916136,0.7814525,103070.0,103060.0,2.30536937]
[1746749916748,0.4206525,103070.0,103060.0,2.2905997]
[1746749917143,0.4206525,103070.0,103060.0,2.1305997]
[1746749917745,0.4206525,103070.0,103060.0,2.5464997]
[1746749918143,0.4206525,103070.0,103060.0,2.81484288]
[1746749918447,0.3715525,103070.0,103060.0,2.81484288]
[1746749918850,0.3715525,103070.0,103060.0,2.82972168]
[1746749919541,0.1775,103070.0,103060.0,3.19052168]
[1746749919943,0.132,103070.0,103060.0,3.50564288]
[1746749920946,0.131,103070.0,103060.0,3.50564288]
[1746749921252,0.13342,103070.0,103060.0,3.50664288]
[1746749922352,0.14242,103070.0,103060.0,3.60467088]
[1746749923852,0.14242,103070.0,103060.0,3.61418082]
[1746749924552,0.14242,103070.0,103060.0,3.97498082]
[1746749926856,0.14242,103070.0,103060.0,4.66638082]
[1746749927447,0.1090704,103070.0,103060.0,3.97498082]
[1746749927649,0.2441149,103090.0,103080.0,0.1940337]
[1746749927851,0.3641149,103090.0,103080.0,1.25907688]
[1746749928149,0.3641149,103090.0,103080.0,1.40367688]
[1746749928555,0.3641149,103090.0,103080.0,1.41845512]
[1746749928755,0.3641149,103090.0,103080.0,1.71845512]
[1746749928953,0.1721,103090.0,103080.0,3.21845512]
[1746749929160,0.125,103090.0,103080.0,3.59392806]
[1746749930154,0.124,103090.0,103080.0,3.38857688]
[1746749930459,0.1713,103090.0,103080.0,3.38857688]
[1746749930661,0.1713,103090.0,103080.0,3.49692006]
[1746749931454,0.1693,103090.0,103080.0,3.49992006]
[1746749931965,0.1683,103090.0,103080.0,3.49992006]
[1746749932163,0.1683,103090.0,103080.0,3.50292006]
[1746749933163,0.1683,103090.0,103080.0,3.39457688]
[1746749935560,0.1683,103090.0,103080.0,3.50292006]
[1746749935966,0.121,103090.0,103080.0,3.50292006]
[1746749936672,0.121,103090.0,103080.0,3.5101132]
[1746749937066,0.121,103090.0,103080.0,3.5101131]
[1746749938172,0.121,103090.0,103080.0,2.0101131]
[1746749938666,0.121,103090.0,103080.0,3.5101131]
[1746749939368,0.121,103090.0,103080.0,3.29342674]
[1746749939569,0.121,103090.0,103080.0,3.5101131]
[1746749941673,0.121,103090.0,103080.0,3.510114]
[1746749942671,0.121,103090.0,103080.0,3.607122]
[1746749942870,0.001,103120.0,103110.0,0.1939773]
[1746749943076,0.1165,103120.0,103110.0,1.6940576]
[1746749943275,0.1165,103120.0,103110.0,1.9426576]
[1746749944073,0.11843948,103120.0,103110.0,1.9426576]
[1746749944281,0.11843948,103120.0,103110.0,3.4426576]
[1746749944478,0.12043948,103120.0,103110.0,3.4426576]
[1746749944774,0.12043948,103120.0,103110.0,3.4436576]
[1746749944976,0.11843948,103120.0,103110.0,3.4446576]
[1746749945176,0.07293948,103120.0,103110.0,3.4446576]
[1746749945572,0.0485,103130.0,103120.0,0.1939584]
[1746749945773,0.0003,103130.0,103120.0,1.39931233]
[1746749946174,0.0003,103130.0,103120.0,1.74052033]
[1746749946670,0.0003,103130.0,103120.0,2.75085233]
[1746749947580,0.0003,103130.0,103120.0,2.75185233]
[1746749947776,0.0485,103130.0,103120.0,2.75185233]
[1746749948282,1e-07,103130.0,103120.0,2.84882033]
[1746749948586,0.0453,103140.0,103130.0,0.1939396]
[1746749948775,0.0453,103140.0,103130.0,1.28387672]
[1746749949177,0.0453,103140.0,103130.0,2.94387672]
[1746749950380,0.0453,103140.0,103130.0,2.94447027]
[1746749950781,0.0453,103140.0,103130.0,3.36037027]
[1746749951182,0.2392208,103140.0,103130.0,3.25202709]
[1746749951486,0.2392208,103140.0,103130.0,3.33258709]
[1746749951487,0.0924,103140.0,103130.0,3.33258709]
[1746749951672,0.2863208,103140.0,103130.0,3.33258709]
[1746749951878,0.0924,103140.0,103130.0,3.44093027]
[1746749952183,0.0924,103140.0,103130.0,2.92013027]
[1746749952377,0.0924,103140.0,103130.0,2.92009027]
[1746749952587,0.0924,103140.0,103130.0,3.28089027]
[1746749952985,0.0924,103140.0,103130.0,3.29562994]
[1746749953185,0.0924,103140.0,103130.0,3.06562994]
[1746749955586,0.0924,103140.0,103130.0,3.06566911]
[1746749955774,0.0924,103140.0,103130.0,3.30976911]
[1746749955979,0.00342,103150.0,103140.0,0.1939208]
[1746749956283,0.05142,103150.0,103140.0,1.93923382]
[1746749956484,0.05142,103150.0,103140.0,1.83089064]
[1746749956684,0.09692,103150.0,103140.0,1.83089064]
[1746749957579,0.05142,103150.0,103140.0,1.83089064]
[1746749957983,0.09792,103150.0,103140.0,1.83089064]
[1746749959188,0.09792,103150.0,103140.0,1.67077515]
[1746749959891,0.05242,103150.0,103140.0,1.67077515]
[1746749960092,0.05242,103150.0,103140.0,1.93911833]
[1746749961185,0.00442,103150.0,103140.0,1.93911833]
[1746749961384,0.00442,103150.0,103140.0,1.98381833]
[1746749961589,0.0456,103170.0,103160.0,0.1938832]
[1746749961780,0.0922,103170.0,103160.0,1.28477755]
[1746749961984,0.0922,103170.0,103160.0,1.37517755]
[1746749962185,0.0922,103170.0,103160.0,1.53517755]
[1746749962592,0.0922,103170.0,103160.0,1.53540044]
[1746749962985,0.0922,103170.0,103160.0,1.58240044]
[1746749963183,0.0932,103170.0,103160.0,1.42240044]
[1746749963387,0.0932,103170.0,103160.0,2.19910044]
[1746749964390,0.0932,103170.0,103160.0,2.19948906]
[1746749964698,0.0479,103170.0,103160.0,2.30783224]
[1746749965190,0.0013,103170.0,103160.0,2.46783224]
[1746749965990,0.0013,103170.0,103160.0,2.35948906]
[1746749966192,0.0003,103170.0,103160.0,2.36148906]
[1746749966492,0.0478,103170.0,103160.0,2.36148906]
[1746749966692,0.0478,103170.0,103160.0,2.36348906]
[1746749967085,0.0478,103170.0,103160.0,2.27944906]
[1746749967291,0.0478,103170.0,103160.0,2.36344906]
[1746749967492,0.0945,103170.0,103160.0,3.86344906]
[1746749967897,0.0945,103170.0,103160.0,3.75510588]
[1746749968091,0.0945,103170.0,103160.0,3.86344906]
[1746749968291,0.0945,103170.0,103160.0,3.70344906]
[1746749968691,0.2883644,103170.0,103160.0,1.60560588]
[1746749968895,0.1435,103170.0,103160.0,1.60560588]
[1746749969197,0.1435,103170.0,103160.0,1.71394906]
[1746749969992,0.0478,103170.0,103160.0,1.71394906]
[1746749970894,0.0478,103170.0,103160.0,1.82229224]
[1746749971098,0.0478,103170.0,103160.0,2.03229224]
[1746749971893,0.0003,103170.0,103160.0,2.03229224]
[1746749972294,0.0003,103170.0,103160.0,1.92394906]
[1746749972594,0.0473,103170.0,103160.0,1.92394906]
[1746749973001,0.0473,103170.0,103160.0,1.92345548]
[1746749973210,0.0473,103170.0,103160.0,2.03179866]
[1746749973394,0.0473,103170.0,103160.0,1.92345548]
[1746749974296,0.0473,103170.0,103160.0,1.93305118]
[1746749974698,0.0473,103170.0,103160.0,3.43305118]
[1746749974909,0.0473,103170.0,103160.0,3.43303059]
[1746749975209,0.0473,103170.0,103160.0,3.57973334]
[1746749976805,0.0489,103180.0,103170.0,0.1938644]
[1746749976993,0.0489,103180.0,103170.0,1.69637609]
[1746749977404,0.0489,103180.0,103170.0,1.74157609]
[1746749978396,0.0489,103180.0,103170.0,1.74155939]
[1746749980004,0.0974,103180.0,103170.0,1.74155939]
[1746749980305,0.0974,103180.0,103170.0,3.24155939]
[1746749981108,0.0974,103180.0,103170.0,3.24896448]
[1746749981904,0.0974,103180.0,103170.0,3.35730766]
[1746749982201,0.0974,103180.0,103170.0,3.24896448]
[1746749983501,0.0974,103180.0,103170.0,3.24907222]
[1746749984108,0.0974,103180.0,103170.0,3.40907222]
[1746749984306,0.0974,103180.0,103170.0,3.40912699]
[1746749985007,0.0974,103180.0,103170.0,3.51747017]
[1746749985609,0.0974,103180.0,103170.0,3.40912699]
[1746749987905,0.0974,103180.0,103170.0,3.51747017]
[1746749987906,0.0495,103180.0,103170.0,3.51747017]
[1746749988107,0.0455,103190.0,103170.0,3.51747017]
[1746749988108,0.10994525,103200.0,103190.0,0.1938269]
[1746749988302,0.1939,103200.0,103190.0,0.5101244]
[1746749988612,0.1939,103200.0,103190.0,0.7329044]
[1746749988910,0.1939,103200.0,103190.0,2.23285827]
[1746749989105,0.1939,103200.0,103190.0,2.39285827]
[1746749989307,0.1483,103200.0,103190.0,2.99365827]
[1746749989510,0.1483,103200.0,103190.0,2.90365827]
[1746749989809,0.1483,103200.0,103190.0,3.09365827]
[1746749991105,0.1926,103200.0,103190.0,3.09365827]
[1746749992712,0.1926,103200.0,103190.0,3.50955827]
[1746749993114,0.1483,103200.0,103190.0,3.50955827]
[1746749994215,0.193,103200.0,103190.0,3.50955827]
[1746749994514,0.193,103200.0,103190.0,3.65626102]
[1746749998334,0.193,103200.0,103190.0,3.50955827]
[1746750000728,0.193,103200.0,103190.0,3.50165008]
[1746750000929,0.193,103200.0,103190.0,3.50935307]
[1746750001127,0.1003,103200.0,103190.0,3.50935307]
[1746750001318,0.001,103210.0,103200.0,0.1938081]
[1746750001522,0.001,103210.0,103200.0,1.85879745]
[1746750001830,0.001,103210.0,103200.0,3.35879745]
[1746750002030,0.0479,103210.0,103200.0,3.35879745]
[1746750002225,0.0479,103210.0,103200.0,3.51879745]
[1746750002924,0.001,103210.0,103200.0,3.51879745]
[1746750003129,0.001,103210.0,103200.0,3.52842043]
[1746750003933,0.001,103210.0,103200.0,3.52884757]
[1746750004230,0.0469,103210.0,103200.0,3.27088141]
[1746750004534,0.1381,103210.0,103200.0,3.27088141]
[1746750004923,0.3318893,103210.0,103200.0,3.16253823]
[1746750005121,0.3318893,103210.0,103200.0,3.11713823]
[1746750005724,0.1381,103210.0,103200.0,3.11696514]
[1746750005928,0.1381,103210.0,103200.0,3.22530832]
[1746750007534,0.1381,103210.0,103200.0,3.27220832]
[1746750008225,0.0469,103210.0,103200.0,3.27220832]
[1746750008424,0.001,103210.0,103200.0,3.3805515]
[1746750008934,0.0495,103210.0,103200.0,3.27220832]
[1746750010030,0.2432893,103210.0,103200.0,3.24762514]
[1746750010236,0.2562,103210.0,103200.0,3.21596832]
[1746750011033,0.2562,103210.0,103200.0,3.21611468]
[1746750011342,0.0962,103210.0,103200.0,3.21611468]
[1746750011832,0.0962,103210.0,103200.0,3.13235468]
[1746750012528,0.09862,103210.0,103200.0,3.13235468]
[1746750013132,0.09862,103210.0,103200.0,3.14716371]
[1746750013936,0.09862,103210.0,103200.0,3.13235468]
[1746750014736,0.05192,103210.0,103200.0,3.13235468]
[1746750015032,0.00342,103210.0,103200.0,3.34069786]
[1746750015237,0.00342,103210.0,103200.0,3.51543382]
[1746750015434,0.49218628,103230.0,103200.0,1.90542572]
[1746750015736,0.17858628,103230.0,103220.0,0.66291368]
[1746750015930,0.17858628,103230.0,103220.0,2.3959664]
[1746750016238,0.17858628,103230.0,103220.0,2.4923664]
[1746750016632,0.17858628,103230.0,103220.0,2.38402322]
[1746750016831,0.16868659,103230.0,103220.0,2.4923664]
[1746750017033,0.16868659,103230.0,103220.0,2.47741708]
[1746750017837,0.16868659,103230.0,103220.0,2.47807796]
[1746750018036,0.36243839,103230.0,103220.0,2.47796464]
[1746750018230,0.36243839,103230.0,103220.0,2.32062146]
[1746750018837,0.2884518,103230.0,103220.0,2.30062146]
[1746750019639,0.2884518,103230.0,103220.0,2.30049793]
[1746750020133,0.2884518,103230.0,103220.0,1.74969793]
[1746750020340,0.6492518,103230.0,103220.0,1.90229793]
[1746750020540,0.65118922,103230.0,103220.0,0.40229793]
[1746750021334,0.7595324,103230.0,103220.0,0.27229793]
[1746750021737,0.8564084,103230.0,103220.0,0.27229793]
[1746750022241,0.90806522,103230.0,103220.0,0.27229793]
[1746750022442,1.0164084,103230.0,103220.0,0.27229793]
[1746750023639,1.0164084,103230.0,103220.0,0.20229793]
[1746750026242,0.90806522,103230.0,103220.0,0.20229793]
[1746750026447,1.0164084,103230.0,103220.0,0.20229793]
[1746750027236,1.0164084,103230.0,103220.0,0.2170646]
[1746750028444,1.0164084,103230.0,103220.0,0.21683204]
[1746750029044,1.3772084,103230.0,103220.0,0.21683204]
[1746750029447,1.26886522,103230.0,103220.0,0.21683204]
[1746750029645,1.3772084,103230.0,103220.0,0.21683204]
[1746750030145,1.2172084,103230.0,103220.0,0.21683204]
[1746750030545,1.10886522,103230.0,103220.0,0.21683204]
[1746750030746,1.2172084,103230.0,103220.0,0.21683204]
[1746750031146,1.3772084,103230.0,103220.0,0.21683204]
[1746750032043,1.3772084,103230.0,103220.0,0.25873204]
[1746750032347,1.2172084,103230.0,103220.0,0.41873204]
[1746750032548,1.1203324,103230.0,103220.0,0.41873204]
[1746750032742,1.01198922,103230.0,103220.0,0.41873204]
[1746750032944,0.37406922,103230.0,103220.0,0.41873204]
[1746750033149,0.65118922,103230.0,103220.0,0.45763204]
[1746750033350,0.73486922,103230.0,103220.0,0.78477522]
[1746750033551,0.73486922,103230.0,103220.0,0.78496255]
[1746750033737,0.73486922,103230.0,103220.0,0.67661937]
[1746750034141,0.65118922,103230.0,103220.0,0.67661937]
[1746750034750,0.65118922,103230.0,103220.0,0.52661937]
[1746750034950,0.65118922,103230.0,103220.0,0.6618527]
[1746750035749,0.7595324,103230.0,103220.0,0.4730527]
[1746750035951,0.7595324,103230.0,103220.0,0.36199443]
[1746750036149,0.7595324,103230.0,103220.0,0.37672197]
[1746750037154,0.7595324,103230.0,103220.0,0.41602197]
[1746750037341,0.7595324,103230.0,103220.0,0.40129443]
[1746750038049,0.65118922,103230.0,103220.0,0.40129443]
[1746750038249,0.7595324,103230.0,103220.0,0.40129443]
[1746750038749,0.65118922,103230.0,103220.0,0.40129443]
[1746750038951,0.7595324,103230.0,103220.0,0.40129443]
[1746750039351,0.7595324,103230.0,103220.0,0.4162671]
[1746750040049,0.85797292,103230.0,103220.0,0.4162671]
[1746750040250,0.85797292,103230.0,103220.0,0.4552671]
[1746750040551,0.74962974,103230.0,103220.0,0.4552671]
[1746750040742,0.85797292,103230.0,103220.0,0.4553614]
[1746750042750,0.74962974,103230.0,103220.0,0.4553614]
[1746750044053,0.69108922,103230.0,103220.0,0.4553614]
[1746750044242,0.69108922,103230.0,103220.0,0.2953614]
[1746750044649,0.60740922,103230.0,103220.0,0.2953614]
[1746750045142,0.19810922,103230.0,103220.0,0.4653614]
[1746750045346,0.00435742,103230.0,103220.0,0.57370458]
[1746750045546,0.19810922,103230.0,103220.0,0.57370458]
[1746750045749,0.19326256,103230.0,103220.0,0.4653614]
[1746750046153,1.05643157,103240.0,103230.0,0.1937518]
[1746750046362,1.05643157,103240.0,103230.0,0.49367003]
[1746750046861,0.9330725,103240.0,103230.0,0.5086427]
[1746750047543,0.9330725,103240.0,103230.0,0.50948344]
[1746750048353,1.04141568,103240.0,103230.0,0.49948344]
[1746750048652,1.08281568,103240.0,103230.0,0.49948344]
[1746750048853,1.08281568,103240.0,103230.0,0.50673367]
[1746750049150,1.08281568,103240.0,103230.0,0.34673367]
[1746750049456,1.08281568,103240.0,103230.0,0.34661873]
[1746750051155,0.9744725,103240.0,103230.0,0.34661873]
[1746750051552,0.95006027,103240.0,103230.0,0.34661873]
[1746750052560,0.95006027,103240.0,103230.0,0.52661873]
[1746750052759,0.90866027,103240.0,103230.0,0.52661873]
[1746750052954,0.90866027,103240.0,103230.0,0.51661873]
[1746750053159,0.86866027,103240.0,103230.0,0.51661873]
[1746750053356,0.50786027,103240.0,103230.0,0.51661873]
[1746750053562,0.36254027,103240.0,103230.0,0.99576191]
[1746750054061,0.36254027,103240.0,103230.0,0.88741873]
[1746750054257,0.36254027,103240.0,103230.0,0.40661873]
[1746750054457,0.40394027,103240.0,103230.0,0.51661873]
[1746750055257,0.24623198,103240.0,103230.0,0.51661873]
[1746750056363,0.35457516,103240.0,103230.0,0.40661873]
[1746750056660,0.75397516,103240.0,103230.0,0.40661873]
[1746750057465,0.75397516,103240.0,103230.0,0.34661873]
[1746750059364,0.64563198,103240.0,103230.0,0.34661873]
[1746750059563,0.75397516,103240.0,103230.0,0.34661873]
[1746750060060,0.75397516,103240.0,103230.0,0.34647526]
[1746750060061,0.82800345,103240.0,103230.0,0.34647526]
[1746750062065,0.82800345,103240.0,103230.0,0.07322346]
[1746750062261,0.82800345,103240.0,103230.0,0.03112346]
[1746750062462,0.1937705,103220.0,103210.0,0.4116701]
[1746750062668,0.1937705,103220.0,103210.0,0.4786168]
[1746750062669,0.66291368,103220.0,103210.0,0.4786168]
[1746750062862,0.74081368,103220.0,103210.0,0.4786168]
[1746750063565,0.6324705,103220.0,103210.0,0.4786168]
[1746750063761,0.1937893,103210.0,103200.0,0.50750275]
[1746750063965,0.1937893,103210.0,103200.0,0.44151085]
[1746750063966,0.74363248,103210.0,103200.0,0.44151085]
[1746750064165,0.94433248,103210.0,103200.0,0.44151085]
[1746750064566,0.94433248,103210.0,103200.0,0.55151085]
[1746750064767,0.94433248,103210.0,103200.0,0.41151085]
[1746750065471,0.94433248,103210.0,103200.0,0.41351085]
[1746750065767,1.02801248,103210.0,103200.0,0.14870275]
[1746750066271,1.02801248,103210.0,103200.0,0.15070275]
[1746750066467,1.02801248,103210.0,103200.0,0.14870275]
[1746750066874,1.12490849,103210.0,103200.0,0.14670275]
[1746750068173,1.23518946,103210.0,103200.0,0.14670275]
[1746750068362,0.1938081,103200.0,103190.0,0.1938266]
[1746750068566,0.74225128,103200.0,103190.0,0.1938266]
[1746750069268,0.90225128,103200.0,103190.0,0.1938266]
[1746750069469,0.7939081,103200.0,103190.0,0.1938266]
[1746750069778,0.90225128,103200.0,103190.0,0.1938266]
[1746750070681,0.1938269,103190.0,103180.0,0.4170107]
[1746750070868,0.86945008,103190.0,103180.0,0.3413887]
[1746750071174,1.02945008,103190.0,103180.0,0.3413887]
[1746750071364,1.02945008,103190.0,103180.0,0.2538302]
[1746750071775,1.02945008,103190.0,103180.0,0.2558302]
[1746750072175,1.02945008,103190.0,103180.0,0.2538302]
[1746750072677,0.1938457,103180.0,103170.0,0.43183123]
[1746750072879,0.74018888,103180.0,103170.0,0.62336523]
[1746750073077,0.90018888,103180.0,103170.0,0.44336523]
[1746750073883,0.7918457,103180.0,103170.0,0.44336523]
[1746750074170,0.5589,103180.0,103170.0,0.48236523]
[1746750074373,0.5589,103180.0,103170.0,0.62049258]
[1746750074568,0.16,103180.0,103170.0,1.35963576]
[1746750074765,0.3538457,103180.0,103170.0,1.35963576]
[1746750074970,0.3538457,103180.0,103170.0,1.37478831]
[1746750075677,0.3538457,103180.0,103170.0,1.26644513]
[1746750075869,0.3953457,103180.0,103170.0,1.26644513]
[1746750076073,0.3953457,103180.0,103170.0,0.90564513]
[1746750076278,0.3538457,103180.0,103170.0,0.90564513]
[1746750076680,0.3538457,103180.0,103170.0,1.32154513]